[Event "*** Titled Tuesday 3|2 Blitz"]
[Site "Chess.com"]
[Date "2015.04.07"]
[Round "5"]
[White "ilmago"]
[Black "BjarkeSahl"]
[Result "1/2-1/2"]
[WhiteElo "1884"]
[BlackElo "2042"]
[TimeControl "180+2"]
[EndTime "12:04:27 PDT"]
[Termination "Game drawn by repetition"]

1. e4 {[%clk 0:03:01.8]} 1... c6 {[%clk 0:03:00.3]} 2. d4 {[%clk 0:03:01.7]}
2... d5 {[%clk 0:02:59.4]} 3. Nc3 {[%clk 0:03:01.7]} 3... dxe4 {[%clk 0:03:00]}
4. Nxe4 {[%clk 0:03:02.5]} 4... Nf6 {[%clk 0:03:01.5]} 5. Nxf6+ {[%clk
0:03:00.2]} 5... exf6 {[%clk 0:03:02.2]} 6. Nf3 {[%clk 0:03:00.1]} 6... Bd6
{[%clk 0:03:02.9]} 7. Bd3 {[%clk 0:02:58.2]} 7... O-O {[%clk 0:03:04.1]} 8. Be3
{[%clk 0:02:58.4]} 8... Qc7 {[%clk 0:03:03.1]} 9. Qd2 {[%clk 0:02:58.6]} 9...
Be6 {[%clk 0:02:56.5]} 10. c4 {[%clk 0:02:49.3]} 10... Nd7 {[%clk 0:02:53.4]}
11. Rc1 {[%clk 0:02:46.6]} 11... Bg4 {[%clk 0:02:45.7]} 12. Nh4 {[%clk
0:02:21.3]} 12... Rfe8 {[%clk 0:02:44.1]} 13. h3 {[%clk 0:02:16.5]} 13... Bh5
{[%clk 0:02:42.3]} 14. Nf5 {[%clk 0:02:16.6]} 14... Bg6 {[%clk 0:02:28.2]} 15.
Nxd6 {[%clk 0:02:15.5]} 15... Qxd6 {[%clk 0:02:28.2]} 16. O-O {[%clk 0:02:16.3]}
16... Bxd3 {[%clk 0:02:23.7]} 17. Qxd3 {[%clk 0:02:16.8]} 17... Nc5 {[%clk
0:02:19.4]} 18. Qc2 {[%clk 0:02:13.8]} 18... Ne4 {[%clk 0:02:18.4]} 19. Rfd1
{[%clk 0:02:12.5]} 19... Rad8 {[%clk 0:02:18]} 20. d5 {[%clk 0:02:13.3]} 20...
c5 {[%clk 0:02:18.2]} 21. Re1 {[%clk 0:02:11.7]} 21... b6 {[%clk 0:02:17.6]} 22.
Rcd1 {[%clk 0:02:12.4]} 22... f5 {[%clk 0:02:14.4]} 23. Qc1 {[%clk 0:02:12.8]}
23... h6 {[%clk 0:02:09.5]} 24. Bf4 {[%clk 0:02:12.7]} 24... Qf6 {[%clk
0:01:44.2]} 25. Rd3 {[%clk 0:01:55.9]} 25... Nd6 {[%clk 0:01:39.2]} 26. Rxe8+
{[%clk 0:01:43.2]} 26... Rxe8 {[%clk 0:01:39.7]} 27. Re3 {[%clk 0:01:40.4]}
27... Rxe3 {[%clk 0:01:30.3]} 28. fxe3 {[%clk 0:01:39.5]} 28... g5 {[%clk
0:01:18.7]} 29. Bxd6 {[%clk 0:01:39.5]} 29... Qxd6 {[%clk 0:01:19.3]} 30. Qd2
{[%clk 0:01:36.8]} 30... Kg7 {[%clk 0:01:17.1]} 31. a3 {[%clk 0:01:37]} 31...
Kg6 {[%clk 0:01:17]} 32. b4 {[%clk 0:01:37.1]} 32... h5 {[%clk 0:01:12.1]} 33.
bxc5 {[%clk 0:01:35]} 33... bxc5 {[%clk 0:01:12.4]} 34. Qd3 {[%clk 0:01:21.9]}
34... h4 {[%clk 0:01:12]} 35. e4 {[%clk 0:01:21.4]} 35... fxe4 {[%clk
0:01:02.4]} 36. Qxe4+ {[%clk 0:01:19.7]} 36... f5 {[%clk 0:00:59.1]} 37. Qe8+
{[%clk 0:01:20.1]} 37... Kf6 {[%clk 0:01:00.5]} 38. Qh8+ {[%clk 0:01:15.7]}
38... Kg6 {[%clk 0:01:01.4]} 39. Qg8+ {[%clk 0:01:15.7]} 39... Kf6 {[%clk
0:01:02.4]} 40. Qh8+ {[%clk 0:01:12.8]} 40... Kg6 {[%clk 0:01:03.4]} 41. Qe8+
{[%clk 0:01:14.2]} 41... Kf6 {[%clk 0:01:04.1]} 42. Qa4 {[%clk 0:01:13.4]} 42...
Qe5 {[%clk 0:00:54.1]} 43. Qc6+ {[%clk 0:01:11.4]} 43... Kg7 {[%clk 0:00:50.7]}
44. Qxc5 {[%clk 0:01:00.8]} 44... Qe1+ {[%clk 0:00:50.9]} 45. Kh2 {[%clk
0:01:01.6]} 45... Qg3+ {[%clk 0:00:51.9]} 46. Kh1 {[%clk 0:01:02.6]} 46... g4
{[%clk 0:00:42.9]} 47. Qe7+ {[%clk 0:00:49.9]} 47... Kg6 {[%clk 0:00:40.3]} 48.
Qe6+ {[%clk 0:00:49]} 48... Kg5 {[%clk 0:00:41.5]} 49. Qe7+ {[%clk 0:00:45]}
49... Kg6 {[%clk 0:00:41.8]} 50. c5 {[%clk 0:00:37.4]} 50... gxh3 {[%clk
0:00:39.5]} 51. Qe6+ {[%clk 0:00:25.6]} 51... Kg7 {[%clk 0:00:39.8]} 52. Qd7+
{[%clk 0:00:20.4]} 52... Kg6 {[%clk 0:00:31.6]} 53. Qe8+ {[%clk 0:00:19.4]}
53... Kg7 {[%clk 0:00:32.2]} 54. Qe7+ {[%clk 0:00:17.8]} 54... Kg6 {[%clk
0:00:32.9]} 55. Qe6+ {[%clk 0:00:18.2]} 55... Kg7 {[%clk 0:00:33.9]} 56. Qe7+
{[%clk 0:00:19.3]} 56... Kg6 {[%clk 0:00:34.6]} 57. Qe6+ {[%clk 0:00:20.6]}
57... Kg7 {[%clk 0:00:35.3]} 58. Qe7+ {[%clk 0:00:21.9]} 58... Kg6 {[%clk
0:00:36.2]} 1/2-1/2

[Event "*** Titled Tuesday 3|2 Blitz"]
[Site "Chess.com"]
[Date "2015.04.07"]
[Round "5"]
[White "DanielRensch"]
[Black "eltenedor"]
[Result "1-0"]
[WhiteElo "2236"]
[BlackElo "1966"]
[TimeControl "180+2"]
[EndTime "12:04:32 PDT"]
[Termination "DanielRensch won by resignation"]

1. e4 {[%clk 0:03:01.9]} 1... d5 {[%clk 0:02:47.4]} 2. exd5 {[%clk 0:03:01.6]}
2... Qxd5 {[%clk 0:02:48.3]} 3. Nc3 {[%clk 0:03:01.6]} 3... Qd8 {[%clk
0:02:47.3]} 4. d4 {[%clk 0:03:03]} 4... Nf6 {[%clk 0:02:44.4]} 5. g3 {[%clk
0:03:04.1]} 5... Bg4 {[%clk 0:02:37.4]} 6. f3 {[%clk 0:03:01.7]} 6... Bf5 {[%clk
0:02:35.4]} 7. Be3 {[%clk 0:03:01.8]} 7... e6 {[%clk 0:02:34.2]} 8. Qd2 {[%clk
0:03:02.4]} 8... Bb4 {[%clk 0:02:29.5]} 9. a3 {[%clk 0:03:00.2]} 9... Ba5 {[%clk
0:02:28.3]} 10. Bc4 {[%clk 0:02:49.4]} 10... O-O {[%clk 0:02:18.3]} 11. Nge2
{[%clk 0:02:48.9]} 11... c6 {[%clk 0:02:12.2]} 12. g4 {[%clk 0:02:42.5]} 12...
Bg6 {[%clk 0:02:11.2]} 13. h4 {[%clk 0:02:43.8]} 13... h5 {[%clk 0:02:06.7]} 14.
Nf4 {[%clk 0:02:39.4]} 14... Bh7 {[%clk 0:01:58.6]} 15. gxh5 {[%clk 0:02:14.9]}
15... Nbd7 {[%clk 0:01:58.2]} 16. Rg1 {[%clk 0:02:15]} 16... e5 {[%clk
0:01:40.7]} 17. Ng6 {[%clk 0:01:44.5]} 17... exd4 {[%clk 0:01:19.7]} 18. Bxd4
{[%clk 0:01:27.4]} 18... Re8+ {[%clk 0:01:18]} 19. Kf1 {[%clk 0:01:28.4]} 19...
Nb6 {[%clk 0:00:54.5]} 20. Ba2 {[%clk 0:01:18]} 20... c5 {[%clk 0:00:54.1]} 21.
Be3 {[%clk 0:00:18.3]} 21... Qxd2 {[%clk 0:00:53.7]} 22. Bxd2 {[%clk 0:00:19.1]}
22... Nxh5 {[%clk 0:00:49.1]} 23. Nf4 {[%clk 0:00:14.5]} 23... Nxf4 {[%clk
0:00:46.5]} 24. Bxf4 {[%clk 0:00:15.4]} 24... c4 {[%clk 0:00:43.6]} 25. Bh6
{[%clk 0:00:12]} 25... g6 {[%clk 0:00:38.3]} 26. Kg2 {[%clk 0:00:11.3]} 26...
Bxc3 {[%clk 0:00:37.9]} 27. bxc3 {[%clk 0:00:12.3]} 27... Re2+ {[%clk
0:00:37.7]} 28. Kh1 {[%clk 0:00:11.8]} 28... Rd8 {[%clk 0:00:34.7]} 29. Rad1
{[%clk 0:00:11.3]} 29... Rxd1 {[%clk 0:00:28.7]} 30. Rxd1 {[%clk 0:00:13.2]}
30... f5 {[%clk 0:00:28.7]} 31. a4 {[%clk 0:00:14]} 31... a5 {[%clk 0:00:19.5]}
32. Rd6 {[%clk 0:00:12.6]} 32... Nxa4 {[%clk 0:00:17.2]} 33. Bxc4+ {[%clk
0:00:12.9]} 33... Kh8 {[%clk 0:00:14.7]} 34. Rd8+ {[%clk 0:00:11.8]} 34... Bg8
{[%clk 0:00:14.7]} 35. Bxe2 {[%clk 0:00:11.2]} 35... Kh7 {[%clk 0:00:13.5]} 36.
Bg5 {[%clk 0:00:10.5]} 36... Nxc3 {[%clk 0:00:09]} 37. Bd3 {[%clk 0:00:10.4]}
37... Bd5 {[%clk 0:00:07.2]} 38. Rd7+ {[%clk 0:00:11.1]} 38... Kg8 {[%clk
0:00:06]} 39. Kg2 {[%clk 0:00:11.7]} 39... Bc6 {[%clk 0:00:05.6]} 40. Rc7 {[%clk
0:00:11.4]} 40... Kf8 {[%clk 0:00:05]} 41. Be7+ {[%clk 0:00:08.9]} 41... Ke8
{[%clk 0:00:04.6]} 42. Bc5 {[%clk 0:00:09.4]} 42... a4 {[%clk 0:00:02.6]} 43.
Rc8+ {[%clk 0:00:09]} 43... Kd7 {[%clk 0:00:02.6]} 44. Ra8 {[%clk 0:00:10.9]}
44... Nd5 {[%clk 0:00:02.6]} 45. Bc4 {[%clk 0:00:11]} 45... Nf4+ {[%clk
0:00:03.4]} 46. Kg3 {[%clk 0:00:11.8]} 46... Nh5+ {[%clk 0:00:03.5]} 47. Kf2
{[%clk 0:00:12.8]} 47... Nf6 {[%clk 0:00:04]} 48. Bd4 {[%clk 0:00:13.4]} 48...
Nd5 {[%clk 0:00:03.6]} 49. Bxd5 {[%clk 0:00:14.5]} 49... Bxd5 {[%clk 0:00:05.5]}
50. Rxa4 {[%clk 0:00:16.1]} 50... Bc6 {[%clk 0:00:06.5]} 51. Ra7 {[%clk
0:00:18]} 51... Ke6 {[%clk 0:00:06.3]} 52. c3 {[%clk 0:00:19.9]} 52... Kd5
{[%clk 0:00:06.8]} 53. Kg3 {[%clk 0:00:21.8]} 1-0

[Event "*** Titled Tuesday 3|2 Blitz"]
[Site "Chess.com"]
[Date "2015.04.07"]
[Round "5"]
[White "lukas_111111"]
[Black "grandmastergauri"]
[Result "1-0"]
[WhiteElo "2331"]
[BlackElo "2269"]
[TimeControl "180+2"]
[EndTime "12:04:43 PDT"]
[Termination "lukas_111111 won by resignation"]

1. d4 {[%clk 0:03:01.9]} 1... Nf6 {[%clk 0:03:00.1]} 2. c4 {[%clk 0:03:02.6]}
2... e6 {[%clk 0:03:01]} 3. Nf3 {[%clk 0:03:02.5]} 3... c5 {[%clk 0:02:59.7]} 4.
d5 {[%clk 0:03:02.6]} 4... exd5 {[%clk 0:02:59.6]} 5. cxd5 {[%clk 0:03:03.7]}
5... d6 {[%clk 0:03:01.5]} 6. Nc3 {[%clk 0:03:04.5]} 6... g6 {[%clk 0:02:57.8]}
7. h3 {[%clk 0:03:05.5]} 7... a6 {[%clk 0:02:53.6]} 8. a4 {[%clk 0:03:05.3]}
8... Bg7 {[%clk 0:02:54.4]} 9. e4 {[%clk 0:03:06.4]} 9... O-O {[%clk 0:02:51.9]}
10. Bd3 {[%clk 0:03:07.3]} 10... Nh5 {[%clk 0:02:49.7]} 11. O-O {[%clk
0:03:06.9]} 11... Nd7 {[%clk 0:02:40.3]} 12. Bg5 {[%clk 0:02:39.2]} 12... Bf6
{[%clk 0:02:40.8]} 13. Bh6 {[%clk 0:02:38.9]} 13... Re8 {[%clk 0:02:41]} 14. Kh1
{[%clk 0:02:25.3]} 14... b6 {[%clk 0:02:41.1]} 15. g4 {[%clk 0:02:18.7]} 15...
Ng7 {[%clk 0:02:41.3]} 16. Bf4 {[%clk 0:02:18.8]} 16... Ne5 {[%clk 0:02:40.3]}
17. Nxe5 {[%clk 0:02:12.3]} 17... Bxe5 {[%clk 0:02:41]} 18. Bxe5 {[%clk
0:02:12.4]} 18... dxe5 {[%clk 0:02:41.4]} 19. f4 {[%clk 0:02:02.3]} 19... Qh4
{[%clk 0:02:39.1]} 20. Kg2 {[%clk 0:01:55.9]} 20... h5 {[%clk 0:02:37.3]} 21. f5
{[%clk 0:01:56.5]} 21... hxg4 {[%clk 0:02:32.9]} 22. hxg4 {[%clk 0:01:52.4]}
22... gxf5 {[%clk 0:02:05.1]} 23. exf5 {[%clk 0:01:39]} 23... e4 {[%clk
0:01:58.1]} 24. Bxe4 {[%clk 0:01:35.8]} 24... Bb7 {[%clk 0:01:54.4]} 25. f6
{[%clk 0:01:29.9]} 25... Rad8 {[%clk 0:01:47.4]} 26. fxg7 {[%clk 0:01:01.7]}
26... Rxe4 {[%clk 0:01:48]} 27. Nxe4 {[%clk 0:01:02.4]} 27... Rxd5 {[%clk
0:01:49]} 28. Qf3 {[%clk 0:00:28.9]} 28... Rd2+ {[%clk 0:01:49]} 29. Nxd2 {[%clk
0:00:18.3]} 29... Qxg4+ {[%clk 0:01:49.5]} 30. Kf2 {[%clk 0:00:16.8]} 30... Bxf3
{[%clk 0:01:48.6]} 31. Nxf3 {[%clk 0:00:18]} 31... Qb4 {[%clk 0:01:44.1]} 32.
Rae1 {[%clk 0:00:17.3]} 32... Kxg7 {[%clk 0:01:43.7]} 33. Rg1+ {[%clk
0:00:17.5]} 33... Kf8 {[%clk 0:01:43.8]} 34. Re2 {[%clk 0:00:14]} 34... Qxa4
{[%clk 0:01:43.5]} 35. Rh1 {[%clk 0:00:10.4]} 35... Kg7 {[%clk 0:01:38]} 36.
Rg1+ {[%clk 0:00:11.1]} 36... Kf8 {[%clk 0:01:38.6]} 37. Rh1 {[%clk 0:00:12.4]}
37... Kg7 {[%clk 0:01:34.2]} 38. Rg1+ {[%clk 0:00:11.3]} 38... Kf6 {[%clk
0:01:35.9]} 39. Rh1 {[%clk 0:00:09.6]} 39... Qf4 {[%clk 0:01:36.1]} 40. Rh4
{[%clk 0:00:10.1]} 40... Qc1 {[%clk 0:01:36.2]} 41. Kg2 {[%clk 0:00:09.3]} 41...
b5 {[%clk 0:01:33.5]} 42. Rf2 {[%clk 0:00:10.4]} 42... Ke6 {[%clk 0:01:30.3]}
43. Re4+ {[%clk 0:00:11.2]} 43... Kd5 {[%clk 0:01:29.9]} 44. Re5+ {[%clk
0:00:11.2]} 44... Kd6 {[%clk 0:01:31.5]} 45. Rfe2 {[%clk 0:00:11.4]} 45... c4
{[%clk 0:01:30.8]} 46. Re8 {[%clk 0:00:11]} 46... Qh6 {[%clk 0:01:27.9]} 47.
Rd8+ {[%clk 0:00:10.5]} 47... Kc7 {[%clk 0:01:28.6]} 48. Rde8 {[%clk 0:00:11]}
48... Qg6+ {[%clk 0:01:29.7]} 49. Kf2 {[%clk 0:00:11.1]} 49... Qb6+ {[%clk
0:01:30.2]} 50. Kf1 {[%clk 0:00:12.2]} 50... Qf6 {[%clk 0:01:30.6]} 51. Kg2
{[%clk 0:00:11.8]} 51... Qg6+ {[%clk 0:01:30.9]} 52. Kf2 {[%clk 0:00:12.1]}
52... Qf6 {[%clk 0:01:32.5]} 53. R8e7+ {[%clk 0:00:12.1]} 53... Kd6 {[%clk
0:01:33.4]} 54. Ra7 {[%clk 0:00:11.6]} 54... Kc5 {[%clk 0:01:33.8]} 55. Rc7+
{[%clk 0:00:12]} 55... Kb6 {[%clk 0:01:34.4]} 56. Rce7 {[%clk 0:00:12.2]} 56...
b4 {[%clk 0:01:32.1]} 57. R7e4 {[%clk 0:00:13.2]} 57... Qc6 {[%clk 0:01:30.7]}
58. Ne5 {[%clk 0:00:11.4]} 58... Qc5+ {[%clk 0:01:28.2]} 59. Kg2 {[%clk
0:00:10.7]} 59... Qd5 {[%clk 0:01:21.3]} 60. Nxc4+ {[%clk 0:00:11.4]} 60... Kc6
{[%clk 0:01:21.2]} 61. Kf2 {[%clk 0:00:12]} 61... Qf5+ {[%clk 0:01:20.6]} 62.
Ke1 {[%clk 0:00:13]} 62... a5 {[%clk 0:01:16.2]} 63. Re5 {[%clk 0:00:12.6]}
63... Qb1+ {[%clk 0:01:17.2]} 64. Kf2 {[%clk 0:00:12.7]} 64... a4 {[%clk
0:01:18.8]} 65. Na5+ {[%clk 0:00:13.1]} 65... Kb6 {[%clk 0:01:19.4]} 66. Nc4+
{[%clk 0:00:14.2]} 66... Kc6 {[%clk 0:01:21.1]} 67. Rd2 {[%clk 0:00:11]} 67...
Qc1 {[%clk 0:01:03.1]} 68. Rd6+ {[%clk 0:00:11.5]} 68... Kc7 {[%clk 0:01:04.8]}
69. Re7+ {[%clk 0:00:12.1]} 69... Kc8 {[%clk 0:01:03.4]} 70. Nb6+ {[%clk
0:00:12.8]} 70... Kb8 {[%clk 0:01:04.5]} 71. Rd8+ {[%clk 0:00:14]} 1-0

[Event "*** Titled Tuesday 3|2 Blitz"]
[Site "Chess.com"]
[Date "2015.04.07"]
[Round "5"]
[White "rhungaski"]
[Black "MattyDPerrine"]
[Result "1-0"]
[WhiteElo "2440"]
[BlackElo "2200"]
[TimeControl "180+2"]
[EndTime "12:09:58 PDT"]
[Termination "rhungaski won by resignation"]

1. d4 {[%clk 0:03:01.9]} 1... Nf6 {[%clk 0:02:55.7]} 2. c4 {[%clk 0:03:03.2]}
2... c5 {[%clk 0:02:54]} 3. d5 {[%clk 0:03:04]} 3... b5 {[%clk 0:02:53.5]} 4.
cxb5 {[%clk 0:03:05.9]} 4... a6 {[%clk 0:02:52]} 5. bxa6 {[%clk 0:03:07.8]} 5...
g6 {[%clk 0:02:51.3]} 6. Nc3 {[%clk 0:03:09.7]} 6... Bxa6 {[%clk 0:02:51.7]} 7.
e4 {[%clk 0:03:11.2]} 7... Bxf1 {[%clk 0:02:53.5]} 8. Kxf1 {[%clk 0:03:12.8]}
8... d6 {[%clk 0:02:55.1]} 9. g3 {[%clk 0:03:14.1]} 9... Bg7 {[%clk 0:02:56.5]}
10. Kg2 {[%clk 0:03:15.7]} 10... O-O {[%clk 0:02:58.3]} 11. Nf3 {[%clk
0:03:17.3]} 11... Nbd7 {[%clk 0:02:59.7]} 12. a4 {[%clk 0:03:16.9]} 12... Qa5
{[%clk 0:02:57.7]} 13. Bd2 {[%clk 0:03:15.8]} 13... Qb4 {[%clk 0:02:49.9]} 14.
Qc2 {[%clk 0:03:16.4]} 14... Rfb8 {[%clk 0:02:50.1]} 15. Ra2 {[%clk 0:02:49.5]}
15... Nb6 {[%clk 0:01:33.9]} 16. b3 {[%clk 0:02:43.5]} 16... Nbd7 {[%clk
0:01:33.1]} 17. Rb1 {[%clk 0:02:41.2]} 17... c4 {[%clk 0:01:22]} 18. bxc4 {[%clk
0:02:20.6]} 18... Qxc4 {[%clk 0:01:20.7]} 19. Rxb8+ {[%clk 0:02:17.9]} 19...
Rxb8 {[%clk 0:01:22]} 20. a5 {[%clk 0:02:10.2]} 20... Nc5 {[%clk 0:01:23]} 21.
e5 {[%clk 0:01:11.8]} 21... Nxd5 {[%clk 0:01:23.3]} 22. Nxd5 {[%clk 0:01:08.1]}
22... Qxd5 {[%clk 0:01:22.6]} 23. exd6 {[%clk 0:01:07.7]} 23... exd6 {[%clk
0:01:07]} 24. a6 {[%clk 0:01:04.6]} 24... Nd3 {[%clk 0:00:39.8]} 25. a7 {[%clk
0:01:02.4]} 25... Ra8 {[%clk 0:00:36.8]} 26. Ra5 {[%clk 0:00:59.7]} 26... Qe4
{[%clk 0:00:32.3]} 27. Qb3 {[%clk 0:00:44.9]} 27... h6 {[%clk 0:00:15.6]} 28.
Qd5 {[%clk 0:00:16.7]} 28... Qxd5 {[%clk 0:00:11.3]} 29. Rxd5 {[%clk 0:00:18.6]}
29... Nc5 {[%clk 0:00:12.4]} 30. Rxd6 {[%clk 0:00:18.9]} 30... Rxa7 {[%clk
0:00:11.2]} 31. Be3 {[%clk 0:00:16.7]} 31... Rc7 {[%clk 0:00:12.4]} 32. Rd8+
{[%clk 0:00:16.8]} 32... Kh7 {[%clk 0:00:13.4]} 33. Bf4 {[%clk 0:00:14]} 33...
Rb7 {[%clk 0:00:11.5]} 34. Be5 {[%clk 0:00:10.6]} 34... Ne6 {[%clk 0:00:13.1]}
35. Re8 {[%clk 0:00:10.7]} 35... Bxe5 {[%clk 0:00:14]} 36. Nxe5 {[%clk
0:00:12.6]} 36... Kg7 {[%clk 0:00:15.9]} 37. h4 {[%clk 0:00:13.5]} 37... Rb2
{[%clk 0:00:16.6]} 38. Ng4 {[%clk 0:00:13]} 38... h5 {[%clk 0:00:15.3]} 39. Ne5
{[%clk 0:00:13.3]} 39... Rb5 {[%clk 0:00:16.4]} 40. Nf3 {[%clk 0:00:12.6]} 40...
Kf6 {[%clk 0:00:16.5]} 41. Rc8 {[%clk 0:00:13.7]} 41... Rb2 {[%clk 0:00:17]} 42.
Rc6 {[%clk 0:00:14.5]} 42... Kg7 {[%clk 0:00:18]} 43. Ra6 {[%clk 0:00:15.4]}
43... Rc2 {[%clk 0:00:18]} 44. Ne5 {[%clk 0:00:14]} 44... Rc5 {[%clk 0:00:17.4]}
45. Nf3 {[%clk 0:00:14.1]} 45... Rc2 {[%clk 0:00:18.4]} 46. Ra7 {[%clk
0:00:13.6]} 46... Kf6 {[%clk 0:00:16.4]} 47. Ra4 {[%clk 0:00:12.7]} 47... Rc3
{[%clk 0:00:16.5]} 48. Nd2 {[%clk 0:00:12.7]} 48... Rd3 {[%clk 0:00:16.4]} 49.
Ne4+ {[%clk 0:00:13.3]} 49... Kg7 {[%clk 0:00:17.9]} 50. Ra7 {[%clk 0:00:13.5]}
50... Rd4 {[%clk 0:00:16]} 51. f3 {[%clk 0:00:14.5]} 51... Rd3 {[%clk
0:00:15.3]} 52. Kf2 {[%clk 0:00:12]} 52... Kf8 {[%clk 0:00:15.1]} 53. Ke2 {[%clk
0:00:12.8]} 53... Rb3 {[%clk 0:00:14.9]} 54. Nd6 {[%clk 0:00:11.5]} 54... Nd4+
{[%clk 0:00:15.3]} 55. Kd2 {[%clk 0:00:05.4]} 55... Rxf3 {[%clk 0:00:16.4]} 56.
Ne4 {[%clk 0:00:04.7]} 56... Ne6 {[%clk 0:00:16.4]} 57. Ra8+ {[%clk 0:00:05.9]}
57... Kg7 {[%clk 0:00:17.2]} 58. Ke2 {[%clk 0:00:07.4]} 58... Rb3 {[%clk
0:00:16.9]} 59. Kf2 {[%clk 0:00:08.3]} 59... Rb2+ {[%clk 0:00:13.5]} 60. Ke3
{[%clk 0:00:09.4]} 60... Rb3+ {[%clk 0:00:15.4]} 61. Kf2 {[%clk 0:00:10.6]}
61... Rb7 {[%clk 0:00:15.3]} 62. Ra2 {[%clk 0:00:10.6]} 62... Rd7 {[%clk
0:00:14.7]} 63. Ke3 {[%clk 0:00:11.3]} 63... Re7 {[%clk 0:00:15.9]} 64. Kf2
{[%clk 0:00:10.3]} 64... Nd4 {[%clk 0:00:16.9]} 65. Ng5 {[%clk 0:00:10.2]} 65...
f6 {[%clk 0:00:16.8]} 66. Nf3 {[%clk 0:00:10.3]} 66... Nf5 {[%clk 0:00:18.4]}
67. Rb2 {[%clk 0:00:10.7]} 67... Rc7 {[%clk 0:00:16.8]} 68. Rd2 {[%clk
0:00:08.9]} 68... Re7 {[%clk 0:00:16.5]} 69. Nd4 {[%clk 0:00:09.3]} 69... Nd6
{[%clk 0:00:15.1]} 70. Ra2 {[%clk 0:00:09.6]} 70... Ne4+ {[%clk 0:00:16]} 71.
Kg2 {[%clk 0:00:10.4]} 71... Rd7 {[%clk 0:00:16.8]} 72. Nf3 {[%clk 0:00:10.7]}
72... Rd3 {[%clk 0:00:15.7]} 73. Rb2 {[%clk 0:00:12]} 73... Rd7 {[%clk
0:00:15.7]} 74. Ra2 {[%clk 0:00:13.1]} 74... Re7 {[%clk 0:00:13.8]} 75. Rb2
{[%clk 0:00:13.9]} 75... Nd6 {[%clk 0:00:14.1]} 76. Ra2 {[%clk 0:00:14.6]} 76...
Nf5 {[%clk 0:00:15.6]} 77. Kf2 {[%clk 0:00:14.5]} 77... Rc7 {[%clk 0:00:15.8]}
78. Rd2 {[%clk 0:00:13.7]} 78... Kf7 {[%clk 0:00:16]} 79. Kg2 {[%clk 0:00:13.5]}
79... Re7 {[%clk 0:00:16.7]} 80. Kf2 {[%clk 0:00:14.4]} 80... Re6 {[%clk
0:00:16.7]} 81. Ra2 {[%clk 0:00:14.1]} 81... Nd6 {[%clk 0:00:17.3]} 82. Rc2
{[%clk 0:00:13.2]} 82... Ne4+ {[%clk 0:00:18]} 83. Kg2 {[%clk 0:00:14.4]} 83...
Nd6 {[%clk 0:00:19.4]} 84. Rc6 {[%clk 0:00:13.5]} 84... Nf5 {[%clk 0:00:19.5]}
85. Rc7+ {[%clk 0:00:13.9]} 85... Re7 {[%clk 0:00:19.8]} 86. Rxe7+ {[%clk
0:00:11.9]} 86... Kxe7 {[%clk 0:00:20.6]} 87. Kf2 {[%clk 0:00:13.4]} 87... Ke6
{[%clk 0:00:21.6]} 88. Nd2 {[%clk 0:00:13.1]} 88... Ke5 {[%clk 0:00:20.7]} 89.
Kf3 {[%clk 0:00:14.4]} 89... Nd4+ {[%clk 0:00:21.3]} 90. Ke3 {[%clk 0:00:15.5]}
90... Ne6 {[%clk 0:00:22.1]} 91. Nf3+ {[%clk 0:00:16.1]} 91... Kf5 {[%clk
0:00:23.7]} 92. Nh2 {[%clk 0:00:17]} 92... g5 {[%clk 0:00:24.4]} 93. hxg5 {[%clk
0:00:17.6]} 93... fxg5 {[%clk 0:00:25.7]} 94. Kf3 {[%clk 0:00:17.1]} 94... g4+
{[%clk 0:00:26.8]} 95. Ke3 {[%clk 0:00:17.2]} 95... Ng5 {[%clk 0:00:27.9]} 96.
Nf1 {[%clk 0:00:13.9]} 96... Ne4 {[%clk 0:00:27.2]} 97. Ke2 {[%clk 0:00:11.8]}
97... Ke5 {[%clk 0:00:28]} 98. Ke3 {[%clk 0:00:12.8]} 98... Nf6 {[%clk
0:00:28.2]} 99. Nd2 {[%clk 0:00:12.5]} 99... Nd5+ {[%clk 0:00:29.6]} 100. Kf2
{[%clk 0:00:13.6]} 100... Nf6 {[%clk 0:00:28.1]} 101. Nc4+ {[%clk 0:00:14]}
101... Kd4 {[%clk 0:00:27.4]} 102. Nd6 {[%clk 0:00:15.1]} 102... Ne4+ {[%clk
0:00:28.4]} 103. Nxe4 {[%clk 0:00:16.3]} 103... Kxe4 {[%clk 0:00:30.3]} 104. Ke2
{[%clk 0:00:17.9]} 104... Kd4 {[%clk 0:00:28.9]} 105. Kd2 {[%clk 0:00:19]}
105... Kd5 {[%clk 0:00:27.1]} 106. Kd3 {[%clk 0:00:19.4]} 106... Ke5 {[%clk
0:00:28.5]} 107. Ke3 {[%clk 0:00:20.6]} 107... Kf5 {[%clk 0:00:28.2]} 108. Kf2
{[%clk 0:00:17.1]} 108... Ke6 {[%clk 0:00:24.7]} 109. Ke1 {[%clk 0:00:15.2]}
109... Kd5 {[%clk 0:00:24.3]} 110. Kd1 {[%clk 0:00:13.8]} 110... Kc4 {[%clk
0:00:21.9]} 111. Ke2 {[%clk 0:00:11.2]} 111... Kd5 {[%clk 0:00:19.6]} 112. Kd3
{[%clk 0:00:12]} 112... Ke5 {[%clk 0:00:18.8]} 113. Ke3 {[%clk 0:00:13.1]}
113... Kf5 {[%clk 0:00:20.5]} 114. Kf2 {[%clk 0:00:11.2]} 114... Ke6 {[%clk
0:00:18.1]} 115. Ke2 {[%clk 0:00:07.6]} 115... Kd6 {[%clk 0:00:18.7]} 116. Kd2
{[%clk 0:00:08.4]} 116... Kc5 {[%clk 0:00:13.7]} 117. Ke3 {[%clk 0:00:05.6]}
117... Kd5 {[%clk 0:00:08.2]} 118. Kf4 {[%clk 0:00:04.2]} 118... Ke6 {[%clk
0:00:07.8]} 119. Kg5 {[%clk 0:00:04.8]} 119... Kf7 {[%clk 0:00:08.6]} 120. Kxh5
{[%clk 0:00:05.7]} 120... Kg7 {[%clk 0:00:09.7]} 121. Kg5 {[%clk 0:00:06]}
121... Kf7 {[%clk 0:00:10.7]} 122. Kf4 {[%clk 0:00:06.4]} 122... Kg6 {[%clk
0:00:12.5]} 123. Kxg4 {[%clk 0:00:07.7]} 123... Kf6 {[%clk 0:00:08.8]} 124. Kh5
{[%clk 0:00:08.5]} 124... Kg7 {[%clk 0:00:10.4]} 125. Kg5 {[%clk 0:00:09.6]}
125... Kh7 {[%clk 0:00:10.3]} 126. Kf6 {[%clk 0:00:10.1]} 126... Kg8 {[%clk
0:00:09.6]} 127. Kg6 {[%clk 0:00:11]} 127... Kh8 {[%clk 0:00:07.7]} 128. g4
{[%clk 0:00:09.9]} 128... Kg8 {[%clk 0:00:08.8]} 129. g5 {[%clk 0:00:10.1]}
129... Kh8 {[%clk 0:00:06.3]} 130. Kf7 {[%clk 0:00:11.2]} 130... Kh7 {[%clk
0:00:08.1]} 1-0